[Event "Reykjavik Open 2022"]
[Site "Reykjavik"]
[Date "2022.04.07"]
[Round "3.53"]
[White "Ptacnikova, Lenka"]
[Black "Mitra, Akash"]
[Result "0-1"]
[ECO "E73"]
[WhiteElo "2173"]
[BlackElo "1866"]
[Annotator "TA"]
[PlyCount "54"]
[EventDate "2022.04.06"]
[EventCountry "ISL"]
[SourceTitle "playchess.com"]
[Source "ChessBase"]
[SourceQuality "1"]
[TimeControl "40/5400+30:1800+30"]

{[%evp 14,54,70,69,64,66,117,117,145,151,138,122,143,144,147,170,170,135,111,99,91,104,91,95,91,33,34,39,52,58,58,56,98,80,91,-97,-98,-98,-97,-129,-120,-514,-493]} 1. c4 {[%emt 0:00:04]} Nf6 {[%emt 0:00:13]} 2. Nc3 {[%emt 0:00:12]} g6 {[%emt 0:00:28]} 3. d4 {[%emt 0:00:17]} Bg7 {[%emt 0:00:11]} 4. e4 {[%emt 0:00:11]} d6 {[%emt 0:00:03]} 5. Be2 {[%emt 0:00:14]} O-O {[%emt 0:00:06]} 6. Be3 {[%emt 0:00:08]} e5 {[%emt 0:00:18]} 7. d5 {[%emt 0:00:04]} a5 {[%emt 0:00:44]} 8. g4 {[%emt 0:00:19]} Na6 {[%emt 0:02:55] E73: King's Indian: Averbakh Variation without 6...c5.} 9. h4 {[%emt 0:07:31] 9.g5 gains popularity.} Ne8 {[%emt 0:02:09]} (9... c6 $14) 10. h5 $16 {[%emt 0:05:04]} f5 {[%emt 0:00:52] White is better.} 11. hxg6 {[%emt 0:02:55]} hxg6 {[%emt 0:00:47]} 12. gxf5 {[%emt 0:04:44]} gxf5 {[%emt 0:00:17]} 13. exf5 {[%emt 0:09:41] And now Nf3 would win.} Bxf5 {[%emt 0:01:41]} 14. Bg4 {[%emt 0:01:58] [#]} Qf6 $146 {[%emt 0:04:05]} ({Predecessor:} 14... Qd7 15. Bxf5 Qxf5 16. Rh5 Qg6 17. Rg5 Qh7 18. Nge2 Nb4 19. Ng3 Nc2+ 20. Kd2 Nxa1 {0-1 (31) Sirosh,I (2405)-Lu,J (2024) Chess.com INT 2020}) 15. Qf3 {[%emt 0:19:25]} Nc5 {[%emt 0:10:11]} 16. Bxf5 {[%emt 0:13:00]} Qxf5 {[%emt 0:00:38]} 17. Qxf5 {[%emt 0:00:12]} Rxf5 {[%emt 0:00:13]} 18. O-O-O {[%emt 0:05:36]} Nf6 {[%emt 0:03:09]} 19. f3 {[%emt 0:08:35] Against Ng4} (19. Rh4 $16) 19... Kf7 {[%emt 0:11:07]} 20. Nh3 {[%emt 0:04:14]} Ke7 {[%emt 0:09:45]} 21. Ng5 {[%emt 0:02:18]} Rg8 $1 {[%emt 0:09:59]} 22. Nce4 {[%emt 0:01:57] [#] Black must now prevent Ng3.} Nfxe4 {[%emt 0:03:29]} 23. fxe4 {[%emt 0:00:09]} Rf6 {[%emt 0:00:33] ...Bh6 is the strong threat.} 24. Rdf1 $2 {[%emt 0:10:09]} ({Weaker is} 24. Rh7 Rh6 $15) (24. Bxc5 $16 {keeps the pressure on. aiming for Be3.} dxc5 25. Ne6) 24... Rxf1+ $17 {[%emt 0:11:17]} 25. Rxf1 {[%emt 0:00:04]} Bh6 {[%emt 0:00:08]} 26. Rf7+ {[%emt 0:02:22]} Ke8 {[%emt 0:00:15]} 27. Rxc7 $2 {[%emt 0:00:34][%mdl 8192] [#]} Bxg5 {[%emt 0:00:09] Weighted Error Value: White=0.50/Black=0.09 (flawless)} 0-1

[Event "Reykjavik Open 2022"]
[Site "Reykjavik"]
[Date "2022.04.07"]
[Round "3.54"]
[White "Louis, Thibault"]
[Black "Zheng, Harry Z"]
[Result "1-0"]
[ECO "C91"]
[WhiteElo "2181"]
[BlackElo "1718"]
[Annotator "TA"]
[PlyCount "115"]
[EventDate "2022.04.06"]
[EventCountry "ISL"]
[SourceTitle "playchess.com"]
[Source "ChessBase"]
[SourceQuality "1"]
[TimeControl "40/5400+30:1800+30"]

{[%evp 30,115,19,22,14,10,15,18,21,14,21,-13,-8,-14,26,26,28,20,49,31,50,30,52,23,43,22,70,62,110,110,110,104,110,104,111,89,89,89,104,93,311,317,357,331,985,976,1117,1098,5788,5911,5302,5265,6203,6058,29977,29978,29978,29979,29979,29979,29981,29982,29982,29979,29979,29980,29980,29981,29982,29983,29983,29983,29983,29984,29984,29966,29985,29986,29986,29987,29987,29987,29989,29990,29990,29991,29991,29992]} 1. e4 {[%emt 0:00:06]} e5 {[%emt 0:00:07]} 2. Nf3 {[%emt 0:00:05]} Nc6 {[%emt 0:00:05]} 3. Bb5 {[%emt 0:00:14]} a6 {[%emt 0:00:15]} 4. Ba4 {[%emt 0:00:07]} Nf6 {[%emt 0:00:16]} 5. O-O {[%emt 0:00:15]} Be7 {[%emt 0:00:48]} 6. Re1 {[%emt 0:04:49]} b5 {[%emt 0:00:17]} 7. Bb3 {[%emt 0:00:08]} d6 {[%emt 0:00:13]} 8. c3 {[%emt 0:02:14]} O-O {[%emt 0:00:18]} 9. d4 {[%emt 0:01:06]} Bg4 {[%emt 0:00:36]} 10. Be3 {[%emt 0:00:32]} Bxf3 {[%emt 0:15:33]} 11. Qxf3 {[%emt 0:01:34]} Na5 {[%emt 0:00:25]} 12. Bc2 {[%emt 0:00:19]} c5 {[%emt 0:01:35]} 13. dxe5 {[%emt 0:02:27]} dxe5 {[%emt 0:00:11]} 14. Nd2 {[%emt 0:02:54]} Qc7 {[%emt 0:05:24]} 15. Rad1 {[%emt 0:00:19]} Rfd8 {[%emt 0:01:44]} 16. Nf1 {[%emt 0:02:36]} Nc4 {[%emt 0:14:44]} 17. Bc1 {[%emt 0:00:33]} g6 {[%emt 0:00:18]} 18. b3 {[%emt 0:02:35]} Nb6 {[%emt 0:00:42]} 19. Rxd8+ {[%emt 0:08:40]} Rxd8 {[%emt 0:00:28]} 20. Rd1 {[%emt 0:00:09]} Rxd1 {[%emt 0:03:00]} 21. Qxd1 {[%emt 0:00:36]} Qd6 {[%emt 0:01:33]} 22. Qxd6 {[%emt 0:02:14]} Bxd6 {[%emt 0:01:11]} 23. f3 {[%emt 0:05:21]} h5 {[%emt 0:05:47]} 24. Kf2 {[%emt 0:00:38]} Kf8 {[%emt 0:01:06]} 25. Ke2 {[%emt 0:00:54]} Nfd7 {[%emt 0:01:52]} 26. Be3 {[%emt 0:01:43]} Ke7 {[%emt 0:02:12]} 27. Nd2 {[%emt 0:00:10]} a5 {[%emt 0:05:03]} (27... Nf8 $11 {deserves consideration.}) 28. Bd3 $14 {[%emt 0:04:25]} b4 {[%emt 0:00:13]} (28... c4 $1 $14) 29. Nc4 {[%emt 0:00:41]} Nxc4 {[%emt 0:00:29]} 30. Bxc4 {[%emt 0:00:12]} Nf8 {[%emt 0:10:47]} 31. Kd3 {[%emt 0:01:00]} Nd7 {[%emt 0:04:46]} 32. Bg5+ {[%emt 0:01:27]} f6 {[%emt 0:01:43]} 33. Be3 {[%emt 0:00:16]} Nb6 {[%emt 0:04:19]} 34. Ba6 {[%emt 0:08:15]} f5 $2 {[%emt 0:06:16]} (34... h4 $16) 35. Bg5+ $18 {[%emt 0:00:49]} Ke8 {[%emt 0:05:57]} 36. Bb5+ {[%emt 0:00:38]} Nd7 $2 {[%emt 0:01:45]} (36... Kf8 37. Bd8 Nc8 38. Bxa5 Kf7 39. cxb4 cxb4) 37. cxb4 $18 {[%emt 0:00:14]} cxb4 {[%emt 0:04:34]} 38. Kc4 {[%emt 0:00:15]} Be7 {[%emt 0:02:06]} 39. Bxe7 {[%emt 0:00:19]} Kxe7 {[%emt 0:00:06]} 40. Bxd7 {[%emt 0:00:00]} Kxd7 {[%emt 0:00:00]} 41. Kd5 {[%emt 0:00:06]} fxe4 {[%emt 0:00:23]} 42. fxe4 {[%emt 0:00:05]} Ke7 {[%emt 0:00:20]} 43. Kxe5 {[%emt 0:00:05]} h4 {[%emt 0:00:07]} 44. g3 {[%emt 0:02:21]} h3 {[%emt 0:00:37]} 45. g4 {[%emt 0:00:05]} Kf7 {[%emt 0:00:53]} 46. g5 {[%emt 0:00:23]} Ke7 {[%emt 0:00:07]} 47. Kd5 {[%emt 0:00:04]} Kd7 {[%emt 0:00:09]} 48. e5 {[%emt 0:00:42]} Ke7 {[%emt 0:00:13]} 49. e6 {[%emt 0:00:16]} Ke8 {[%emt 0:00:42]} 50. Kd6 {[%emt 0:00:09]} Kd8 {[%emt 0:00:11]} 51. e7+ {[%emt 0:00:09]} Ke8 {[%emt 0:00:06]} 52. Ke6 {[%emt 0:00:03]} a4 {[%emt 0:00:15]} 53. Kf6 {[%emt 0:00:08]} ({And not} 53. bxa4 b3 54. axb3 $11) 53... a3 {[%emt 0:00:20]} 54. Kxg6 {[%emt 0:00:09]} Kxe7 {[%emt 0:00:04]} 55. Kh7 {[%emt 0:00:07]} Ke6 {[%emt 0:00:06]} 56. g6 {[%emt 0:00:04]} Ke5 {[%emt 0:00:06]} 57. g7 {[%emt 0:00:05]} Kd4 {[%emt 0:00:06]} 58. g8=Q {[%emt 0:00:17]} 1-0

[Event "Reykjavik Open 2022"]
[Site "Reykjavik"]
[Date "2022.04.07"]
[Round "3.55"]
[White "Mai, Alexander Oliver"]
[Black "Larkin, Benjamin"]
[Result "1/2-1/2"]
[ECO "B12"]
[WhiteElo "2207"]
[BlackElo "1784"]
[Annotator "TA"]
[PlyCount "68"]
[EventDate "2022.04.06"]
[EventCountry "ISL"]
[SourceTitle "playchess.com"]
[Source "ChessBase"]
[SourceQuality "1"]
[TimeControl "40/5400+30:1800+30"]

{[%evp 9,68,17,40,17,16,17,12,11,13,0,14,12,22,0,2,0,12,0,0,-27,-6,-18,103,-24,-21,-110,-29,-27,-30,-30,-31,-25,0,-61,-59,-65,-29,-41,-13,-13,-13,-16,0,-33,-28,-50,-39,-41,-10,-28,0,-77,0,0,0,0,0,0,0,0,0]} 1. e4 {[%emt 0:00:03][%cal Be2e4,Be4e5][%mdl 32]} c6 {[%emt 0:00:04]} 2. d4 {[%emt 0:00:09]} d5 {[%emt 0:00:04]} 3. e5 {[%emt 0:00:06]} c5 {[%emt 0:00:16]} 4. Nf3 {[%emt 0:00:05]} cxd4 {[%emt 0:01:13]} 5. Nxd4 {[%emt 0:00:06]} e6 {[%emt 0:05:12]} 6. Bd3 {[%emt 0:02:55] B12: Caro-Kann: Advance Variation.} Nc6 {[%emt 0:04:42]} 7. Nxc6 {[%emt 0:01:20]} bxc6 {[%emt 0:00:03]} 8. O-O {[%emt 0:00:32]} Ne7 {[%emt 0:01:56]} 9. Nd2 {[%emt 0:05:24]} Ng6 {[%emt 0:04:21]} 10. Nf3 {[%emt 0:02:38]} Be7 {[%emt 0:04:35]} 11. Qe2 {[%emt 0:01:36]} O-O {[%emt 0:03:07]} 12. g3 {[%emt 0:01:38] [#]} f6 $146 {[%emt 0:07:27][%cal Bf7f6,Bf6f5][%mdl 32]} ({Predecessor:} 12... f5 13. c4 d4 14. c5 Bxc5 15. Bc4 Be7 16. Rd1 c5 17. b4 Qb6 18. bxc5 Bxc5 {1-0 (32) Najer,E (2648)-Villegas,P (2358) Chess.com INT 2020}) 13. Bxg6 {[%emt 0:01:27]} hxg6 {[%emt 0:00:07]} 14. Qd3 {[%emt 0:02:08]} Kf7 {[%emt 0:02:30]} 15. Re1 {[%emt 0:03:55]} g5 {[%emt 0:06:11]} (15... c5 $11) 16. c3 {[%emt 0:07:56] &Bianco is more active.} ({Inferior is} 16. Qh7 Rh8 17. Qd3 c5 18. exf6 gxf6 $17) (16. exf6 $16 Bxf6 17. Bd2) 16... f5 $1 $11 {[%emt 0:03:26] next ...c5 is good for Black.} 17. Bd2 {[%emt 0:04:34]} (17. Nd4 $11) 17... g4 {[%emt 0:02:36]} (17... c5 $17 {Hoping for ...g4.} 18. Qe3 g4 19. Ng5+ Kg8) 18. Nd4 {[%emt 0:00:06]} c5 {[%emt 0:02:04]} 19. Nc6 {[%emt 0:01:39]} Qc7 {[%emt 0:00:51]} 20. Nxe7 {[%emt 0:00:16]} Qxe7 {[%emt 0:00:46]} 21. b4 {[%emt 0:01:47]} (21. h3 $1 $11) 21... Bb7 $15 {[%emt 0:07:36][%cal Od5d4]} 22. bxc5 {[%emt 0:01:22]} Qxc5 {[%emt 0:00:32][%cal Od5d4]} (22... d4 $5) 23. Rab1 {[%emt 0:02:27]} Qc6 {[%emt 0:00:57][%cal Od5d4] White should prevent ...d4!} 24. Qd4 {[%emt 0:01:21]} Ba6 {[%emt 0:04:08]} 25. Rb4 {[%emt 0:02:45]} Rfc8 {[%emt 0:03:00]} 26. Reb1 {[%emt 0:04:32][%cal Oh2h3]} (26. h3 $5) 26... Rc7 {[%emt 0:00:46]} 27. R1b3 {[%emt 0:02:31]} Bc4 {[%emt 0:03:54]} 28. Rb2 {[%emt 0:02:08]} Rd8 {[%emt 0:02:43]} 29. Be3 {[%emt 0:03:05]} Rdd7 {[%emt 0:01:14]} 30. Kg2 {[%emt 0:03:17] [#]} (30. h3 $11 {keeps the balance.}) 30... Rb7 {[%emt 0:02:54]} (30... Bd3 $1 $17) 31. Rxb7 $11 {[%emt 0:32:32] The position is equal.} Rxb7 {[%emt 0:00:11]} 32. Rxb7+ {[%emt 0:01:38]} Qxb7 {[%emt 0:00:05]} 33. Qxa7 {[%emt 0:00:15]} Qxa7 {[%emt 0:00:06]} 34. Bxa7 {[%emt 0:00:05]} Bxa2 {[%emt 0:00:08] Weighted Error Value: White=0.27 (precise) /Black=0.25 (precise)} 1/2-1/2

[Event "Reykjavik Open 2022"]
[Site "Reykjavik"]
[Date "2022.04.07"]
[Round "3.56"]
[White "Ingvason, Johann"]
[Black "Hermes, Geoff R"]
[Result "1-0"]
[ECO "B07"]
[WhiteElo "2183"]
[BlackElo "1837"]
[Annotator "TA"]
[PlyCount "95"]
[EventDate "2022.04.06"]
[EventCountry "ISL"]
[SourceTitle "playchess.com"]
[Source "ChessBase"]
[SourceQuality "1"]
[TimeControl "40/5400+30:1800+30"]

{[%evp 24,95,8,0,34,27,46,18,45,47,133,145,166,150,185,131,225,162,174,147,347,235,314,323,329,320,314,87,67,77,129,156,142,143,116,46,192,185,327,312,430,441,438,421,433,429,624,587,896,870,1097,1097,1014,932,977,935,1651,833,825,825,1483,1512,1660,1585,1458,1348,1831,1726,1640,1467,29986,29987,29985,29983]} 1. e4 {[%emt 0:00:02]} d6 {[%emt 0:00:15]} 2. d4 {[%emt 0:00:08]} Nf6 {[%emt 0:00:37]} 3. Bd3 {[%emt 0:00:08]} e5 {[%emt 0:00:26]} 4. d5 {[%emt 0:00:08]} Be7 {[%emt 0:00:12]} 5. c4 {[%emt 0:00:25]} O-O {[%emt 0:00:12]} 6. Ne2 {[%emt 0:01:03]} Nbd7 {[%emt 0:01:22]} 7. Ng3 {[%emt 0:00:20]} Nc5 {[%emt 0:04:27]} 8. Bc2 {[%emt 0:00:06]} c6 {[%emt 0:00:34]} 9. O-O {[%emt 0:00:08]} a5 {[%emt 0:05:35]} 10. Nc3 {[%emt 0:01:56]} Bd7 {[%emt 0:14:23]} 11. a4 {[%emt 0:00:09]} Na6 {[%emt 0:03:36]} 12. Ra3 {[%emt 0:01:43]} Nb4 {[%emt 0:02:33]} 13. Bb1 {[%emt 0:00:25]} Qc7 {[%emt 0:08:23]} 14. h3 {[%emt 0:00:38]} Qc8 {[%emt 0:04:42]} 15. Kh2 {[%emt 0:03:19]} h6 {[%emt 0:12:14]} 16. f4 {[%emt 0:01:58]} exf4 {[%emt 0:08:37]} (16... Ne8 $14) 17. Bxf4 $16 {[%emt 0:04:36]} cxd5 {[%emt 0:07:31]} 18. cxd5 {[%emt 0:00:39]} Qc5 {[%emt 0:10:44]} 19. Qf3 {[%emt 0:04:18]} (19. Qd2 $18) 19... Nh7 {[%emt 0:05:02]} (19... Ne8 $16) 20. Be3 {[%emt 0:06:18]} Qc4 {[%emt 0:02:42]} 21. Nb5 {[%emt 0:01:27]} Bxb5 $2 {[%emt 0:02:07]} (21... Nc2 $16 {was worth a try.}) 22. Rc3 {[%emt 0:04:12]} (22. axb5 Bf6 $16) 22... Qxf1 {[%emt 0:00:19]} 23. Nxf1 {[%emt 0:00:12]} Bxf1 {[%emt 0:00:20]} 24. Qxf1 {[%emt 0:00:51]} Bf6 {[%emt 0:00:34]} 25. e5 $2 {[%emt 0:17:15]} ({But not} 25. Rc7 Be5+ 26. Bf4 Bxf4+ 27. Qxf4 Nf6 28. Rxb7 Rfd8 $18) (25. Bf4 $18 {is more deadly.}) 25... Bxe5+ $16 {[%emt 0:00:46]} 26. Bf4 {[%emt 0:00:06]} Bxf4+ {[%emt 0:01:28]} (26... Nf6 $142) 27. Qxf4 $16 {[%emt 0:00:07]} Nf6 {[%emt 0:00:09]} 28. Rg3 {[%emt 0:01:11]} ({Don't take} 28. Qxd6 $6 Rad8 29. Qg3 Nbxd5 $14) 28... Kh8 {[%emt 0:01:20]} 29. Qxd6 {[%emt 0:14:59]} ({White should try} 29. Rf3 $16) 29... Rfd8 {[%emt 0:00:13] [#]} ({Better is} 29... Nbxd5 $14 30. Rd3 Rad8) 30. Qb6 $1 $18 {[%emt 0:00:43]} Nbxd5 {[%emt 0:00:48]} (30... Rd7 $142 31. Qb5 (31. d6 Nbd5 $16) 31... Nbxd5) 31. Qxb7 $18 {[%emt 0:00:17]} Rab8 {[%emt 0:00:50]} 32. Qxf7 {[%emt 0:00:44]} Rd7 {[%emt 0:00:18]} 33. Qe6 {[%emt 0:16:49]} Rb6 {[%emt 0:00:54]} 34. Qe1 {[%emt 0:03:20]} Nb4 {[%emt 0:00:51]} (34... Rb4 $142 35. Rf3 Rd8) 35. Bf5 $18 {[%emt 0:04:19]} Rc7 {[%emt 0:00:55]} 36. Qe5 {[%emt 0:01:09]} Nbd5 {[%emt 0:00:39]} 37. Rc3 {[%emt 0:03:23]} Rxc3 {[%emt 0:00:50]} 38. bxc3 {[%emt 0:00:07]} Rb7 {[%emt 0:00:48]} 39. Qd6 {[%emt 0:03:45]} Re7 {[%emt 0:00:47]} 40. Qd8+ {[%emt 0:00:00]} Re8 {[%emt 0:00:00]} 41. Qxa5 {[%emt 0:00:44]} Ne3 {[%emt 0:02:13]} 42. Bg6 {[%emt 0:00:44]} Rc8 {[%emt 0:10:34]} 43. Qa6 {[%emt 0:02:47]} Rf8 {[%emt 0:04:44]} 44. Qe6 {[%emt 0:03:44]} Ned5 {[%emt 0:02:25]} 45. Qd6 {[%emt 0:00:59]} Rc8 {[%emt 0:03:42]} 46. c4 {[%emt 0:01:06]} Rxc4 {[%emt 0:02:23]} 47. Qd8+ {[%emt 0:00:24]} Ng8 {[%emt 0:00:09]} 48. Bf7 {[%emt 0:00:48]} 1-0

[Event "Reykjavik Open 2022"]
[Site "Reykjavik"]
[Date "2022.04.07"]
[Round "3.57"]
[White "Gudmundsson, Gunnar Erik"]
[Black "Wichtrup, Jan-Louis"]
[Result "1-0"]
[ECO "D41"]
[WhiteElo "1906"]
[BlackElo "2155"]
[Annotator "TA"]
[PlyCount "69"]
[EventDate "2022.04.06"]
[EventCountry "ISL"]
[SourceTitle "playchess.com"]
[Source "ChessBase"]
[SourceQuality "1"]
[TimeControl "40/5400+30:1800+30"]

{[%evp 23,69,0,0,-8,-14,-16,0,-25,0,-53,-39,-44,-36,-66,-29,-126,-154,-105,0,0,0,0,0,0,0,-7,0,-34,558,545,29973,29974,29974,29974,29973,29975,6303,5210,2385,0,2325,996,29988,29989,29994,29995,29995,878]} 1. d4 {[%emt 0:00:04]} Nf6 {[%emt 0:01:22]} 2. c4 {[%emt 0:00:45]} e6 {[%emt 0:00:08]} 3. Nc3 {[%emt 0:00:31]} d5 {[%emt 0:00:22]} 4. cxd5 {[%emt 0:00:43]} Nxd5 {[%emt 0:00:11]} 5. e4 {[%emt 0:01:29]} Nxc3 {[%emt 0:01:29]} 6. bxc3 {[%emt 0:00:07]} c5 {[%emt 0:00:10]} 7. Nf3 {[%emt 0:00:50]} cxd4 {[%emt 0:00:09]} 8. cxd4 {[%emt 0:00:48]} Bb4+ {[%emt 0:00:11]} 9. Bd2 {[%emt 0:00:20]} Bxd2+ {[%emt 0:00:08]} 10. Qxd2 {[%emt 0:00:11]} O-O {[%emt 0:00:07]} 11. Be2 {[%emt 0:03:38]} b6 {[%emt 0:00:22]} 12. O-O {[%emt 0:00:50]} Bb7 {[%emt 0:00:08]} 13. Qf4 {[%emt 0:05:07] D41: Queen's Gambit Declined: Semi-Tarrasch with 5 cxd5.} Nd7 {[%emt 0:07:01]} 14. e5 {[%emt 0:07:27]} Rc8 {[%emt 0:09:12] [#]} 15. Rac1 $146 {[%emt 0:03:14] The position is equal.} ({Predecessor:} 15. Ng5 h6 16. Ne4 Bxe4 17. Qxe4 f5 18. Qe3 Re8 19. Bb5 Re7 20. Rfd1 Nf8 21. Ba4 {1-0 (38) Barsamian,E (2213)-Kuzin,S (2028) Moscow 2011}) 15... Nb8 {[%emt 0:02:57][%cal Bd7b8,Bb8c6,Bc6b4][%mdl 32]} 16. Rfd1 {[%emt 0:08:29]} (16. Rxc8 $11 Qxc8 17. Rc1) 16... Rxc1 {[%emt 0:03:11]} (16... Qd5 {feels hotter.} 17. Bd3 h6 18. a3 Rfd8) 17. Rxc1 {[%emt 0:03:01]} Nc6 {[%emt 0:03:22]} 18. Bd3 {[%emt 0:09:51]} Nb4 {[%emt 0:03:13][%csl LRa2,LRd3]} 19. Be4 {[%emt 0:06:31]} (19. Bxh7+ $11 Kxh7 20. Ng5+ Kg8 21. Qg4) 19... Bxe4 $17 {[%emt 0:03:43]} 20. Qxe4 {[%emt 0:00:07]} Qd7 {[%emt 0:01:02]} (20... Nxa2 $17 21. Ra1 Nc3) 21. Ng5 $11 {[%emt 0:04:05][%csl Gg5][%cal Re4h7] [#]} g6 {[%emt 0:00:24]} 22. Qh4 {[%emt 0:10:12][%csl Gg5][%cal Rh4h7]} h5 {[%emt 0:00:15]} 23. Ne4 {[%emt 0:00:28] Threatens to win with Nf6+.} Nd5 {[%emt 0:01:24]} 24. g4 {[%emt 0:15:53]} Qd8 {[%emt 0:19:32]} 25. Qh3 {[%emt 0:12:08]} hxg4 $2 {[%emt 0:05:01][%mdl 8192]} (25... Kg7 $15 {stays ahead.}) 26. Qh6 $18 {[%emt 0:01:14]} f6 {[%emt 0:07:46] Against Ng5} 27. Qxg6+ {[%emt 0:01:19]} Kh8 {[%emt 0:00:09]} 28. Qh5+ {[%emt 0:02:36]} Kg7 {[%emt 0:01:25]} 29. Qxg4+ {[%emt 0:00:11]} Kh6 {[%emt 0:02:04]} 30. Qh4+ {[%emt 0:01:40]} Kg6 {[%emt 0:00:11]} 31. Qg4+ $40 {[%emt 0:01:33][%mdl 128] Black needs to defend precisely.} Kh6 $1 {[%emt 0:00:08] [#] And now ...Rg8 would win.} 32. Kh1 {[%emt 0:00:34]} (32. Qh3+ $142 Kg7 33. Kh1) 32... Rg8 {[%emt 0:09:22]} 33. Qh4+ {[%emt 0:00:18] White mates.} Kg6 {[%emt 0:00:06]} 34. Rg1+ {[%emt 0:00:06]} Kf5 {[%emt 0:00:10]} 35. Nd6+ {[%emt 0:00:32] Weighted Error Value: White=0.42/Black=0.89} (35. Ng3+ $142 Rxg3 36. Rxg3 Qg8 37. Rxg8 Nf4 38. f3 fxe5 39. Qg5#) 1-0

[Event "Reykjavik Open 2022"]
[Site "Reykjavik"]
[Date "2022.04.08"]
[Round "4.1"]
[White "Jarmula, Lukasz"]
[Black "Niemann, Hans Moke"]
[Result "1-0"]
[ECO "C83"]
[WhiteElo "2434"]
[BlackElo "2642"]
[Annotator "RC"]
[PlyCount "113"]
[EventDate "2022.04.06"]
[EventCountry "ISL"]
[SourceTitle "playchess.com"]
[Source "ChessBase"]
[SourceQuality "1"]
[TimeControl "40/5400+30:1800+30"]

1. e4 {[%emt 0:00:02]} e5 {[%emt 0:19:28]} 2. Nf3 {[%emt 0:00:07]} Nc6 {[%emt 0:02:41]} 3. Bb5 {[%emt 0:00:04]} a6 {[%emt 0:00:23]} 4. Ba4 {[%emt 0:00:05]} Nf6 {[%emt 0:01:11]} 5. O-O {[%emt 0:00:08]} Nxe4 {[%emt 0:01:45]} 6. d4 {[%emt 0:03:34]} b5 {[%emt 0:00:24]} 7. Bb3 {[%emt 0:00:05]} d5 {[%emt 0:00:12]} 8. dxe5 {[%emt 0:00:07]} Be6 {[%emt 0:00:08]} 9. Nbd2 {[%emt 0:03:18]} Nc5 {[%emt 0:02:09]} 10. c3 {[%emt 0:00:31]} Be7 {[%emt 0:00:49]} 11. Bc2 {[%emt 0:00:40]} d4 {[%emt 0:00:05]} 12. Nb3 {[%emt 0:02:55]} d3 {[%emt 0:00:58]} 13. Nxc5 {[%emt 0:00:59]} dxc2 {[%emt 0:00:06]} 14. Qxd8+ {[%emt 0:00:08]} Rxd8 {[%emt 0:00:03]} 15. Nxe6 {[%emt 0:00:12]} fxe6 {[%emt 0:00:03]} 16. Be3 {[%emt 0:00:27]} Rd5 {[%emt 0:00:03]} 17. Rfc1 {[%emt 0:00:21]} Nxe5 {[%emt 0:00:05]} 18. Nxe5 {[%emt 0:00:06]} Rxe5 {[%emt 0:00:06]} 19. Rxc2 {[%emt 0:00:08]} Kf7 {[%emt 0:00:11]} 20. c4 {[%emt 0:06:20]} Bd6 {[%emt 0:07:25]} 21. g3 {[%emt 0:08:52]} Rb8 {[%emt 0:11:51]} 22. b3 {[%emt 0:04:18]} a5 {[%emt 0:00:50]} 23. Rd1 {[%emt 0:02:48]} bxc4 {[%emt 0:00:23]} 24. bxc4 {[%emt 0:02:24]} Rd8 {[%emt 0:05:56]} 25. c5 {[%emt 0:08:40]} Be7 {[%emt 0:00:16]} 26. Rb1 {[%emt 0:00:24]} Ra8 {[%emt 0:06:19]} 27. Rb7 {[%emt 0:03:20]} Bd8 {[%emt 0:00:40]} 28. c6 {[%emt 0:06:09]} Ra6 {[%emt 0:08:51]} 29. Ba7 {[%emt 0:05:23]} Re1+ {[%emt 0:14:34]} 30. Kg2 {[%emt 0:00:06]} Ke7 {[%emt 0:00:12]} 31. Rd2 {[%emt 0:03:53]} Rxc6 {[%emt 0:00:51]} 32. Rb8 {[%emt 0:00:22]} Rd6 {[%emt 0:00:05]} 33. Bc5 {[%emt 0:00:06]} Rc1 {[%emt 0:00:07]} 34. Bxd6+ {[%emt 0:01:22]} cxd6 {[%emt 0:00:01]} 35. Rdb2 {[%emt 0:02:16]} Kd7 {[%emt 0:02:26]} 36. R2b7+ {[%emt 0:02:22]} Bc7 {[%emt 0:00:07]} 37. Rg8 {[%emt 0:00:47]} Kc6 {[%emt 0:00:04]} 38. Rb2 {[%emt 0:00:33]} d5 {[%emt 0:00:05]} 39. Re2 {[%emt 0:01:22]} e5 {[%emt 0:00:02]} 40. Rxg7 {[%emt 0:00:00]} d4 {[%emt 0:00:00]} 41. Kf3 {[%emt 0:04:05]} Kd5 {[%emt 0:05:02]} 42. Rb2 {[%emt 0:04:42]} e4+ {[%emt 0:00:00]} 43. Ke2 {[%emt 0:03:02]} Bd6 {[%emt 0:00:00]} 44. Rg5+ {[%emt 0:07:57]} Kc4 {[%emt 0:00:00]} 45. Kd2 {[%emt 0:11:27]} Rf1 {[%emt 0:00:00]} 46. Rc2+ {[%emt 0:02:16]} Kb4 {[%emt 0:00:00]} 47. Rd5 {[%emt 0:00:55]} Rxf2+ {[%emt 0:00:00]} 48. Kc1 {[%emt 0:00:31]} Rf1+ {[%emt 0:02:37]} 49. Kb2 {[%emt 0:02:33]} d3 {[%emt 0:00:05]} 50. Rd4+ {[%emt 0:00:59]} Kb5 {[%emt 0:00:31]} 51. a4+ {[%emt 0:00:05]} Kb6 {[%emt 0:00:05]} 52. Rxd6+ {[%emt 0:00:06]} Kb7 {[%emt 0:00:02]} 53. Rg2 {[%emt 0:01:03]} Kc7 {[%emt 0:01:14]} 54. Re6 {[%emt 0:04:22]} Re1 {[%emt 0:00:08]} 55. Rd2 {[%emt 0:00:21]} Kd7 {[%emt 0:00:08]} 56. Re5 {[%emt 0:00:14]} Kd6 {[%emt 0:00:08]} 57. Rxa5 {[%emt 0:00:14]} 1-0